fUSD/lending_fUSD_20250523
["ID","MTS","AMOUNT","RATE_DAILY","PERIOD"]
[362144964,1748035833563,-800.0,0.00027989,10]
[362144966,1748035833572,-800.0,0.00027989,10]
[362144968,1748035833581,-800.0,0.00027989,10]
[362144970,1748035833591,-800.0,0.00027989,10]
[362144972,1748035833600,-800.0,0.00027989,10]
[362144974,1748035833609,-800.0,0.00027989,10]
[362144976,1748035833619,-800.0,0.00027989,10]
[362144978,1748035833628,-800.0,0.00027989,10]
[362144980,1748035833637,-800.0,0.00027989,10]
[362144982,1748035833646,-846.38868036,0.00027989,10]
[362144984,1748035833656,-150.0,0.00028002,2]
[362144986,1748035833665,-150.0,0.00028004,2]
[362144988,1748035833675,-152.0,0.00028056,3]
[362144990,1748035833685,-15267.9639216,0.00028075,3]
[362144992,1748035833694,-2604.99225356,0.00028075,3]
[362144994,1748035833703,-609.75586598,0.00028083,2]
[362144996,1748035833712,-5000.0,0.00028084,2]
[362144998,1748035833722,-500.0,0.00028094,2]
[362145000,1748035833731,-865.0,0.00028115,2]
[362145002,1748035833742,-1486.05,0.00028129,2]
[362145004,1748035833751,-268.87076912,0.00028141,18]
[362145006,1748035833761,-151.51,0.00028153,2]
[362145007,1748035833770,-30535.9278433,0.00028163,3]
[362145009,1748035833782,-44284.8683105,0.00028163,3]
[362145011,1748035833792,-151.0,0.00028174,7]
[362145013,1748035833801,-151.0,0.00028174,7]
[362145015,1748035833811,-151.0,0.00028183,7]
[362145017,1748035833820,-643.078404,0.00028183,7]
[362145019,1748035833829,-643.078404,0.00028183,7]
[362145021,1748035833839,-503.0,0.00028184,5]
[362145023,1748035833848,-151.51,0.00028184,2]
[362145025,1748035833857,-151.0,0.00028194,7]
[362145027,1748035833867,-151.0,0.00028194,7]
[362145029,1748035833877,-151.0,0.00028194,7]
[362145031,1748035833886,-152.380896,0.00028194,7]
[362145033,1748035833895,-151.0,0.00028194,7]
[362145035,1748035833905,-227.87527,0.00028194,7]
[362145037,1748035833914,-147336.6784999,0.00028194,2]
[362145039,1748035833923,-4399.4425051,0.00028194,2]
[362145041,1748035833932,-11025.1866555,0.00028194,2]
[362145043,1748035833942,-38375.736266,0.00028194,2]
[362145045,1748035833951,-151.0,0.00028194,7]
[362145047,1748035833960,-151.0,0.00028194,7]
[362145049,1748035833970,-49091.28426588,0.000282,2]
[362145051,1748035833979,-332.5077,0.000282,2]
[362145053,1748035833988,-332.5077,0.000282,2]
[362145055,1748035833998,-332.50771,0.000282,2]
[362145057,1748035834008,-164.3005,0.000282,2]
[362145059,1748035834017,-1509.76,0.000282,7]
[362145061,1748035834026,-202.38064,0.000282,2]
[362145063,1748035834036,-643.078404,0.000282,7]
[362145065,1748035834045,-643.078404,0.000282,7]
[362145067,1748035834054,-151.51,0.00028204,2]
[362145069,1748035834064,-1035.50121157,0.00028213,15]
[362145071,1748035834073,-500.0,0.00028214,2]
[362145073,1748035834083,-500.0,0.00028214,2]
[362145075,1748035834093,-500.0,0.00028214,2]
[362145077,1748035834103,-500.0,0.00028214,2]
[362145079,1748035834112,-500.0,0.00028214,2]
[362145081,1748035834122,-500.0,0.00028214,2]
[362145083,1748035834132,-500.0,0.00028214,2]
[362145085,1748035834142,-937.0,0.00028214,2]
[362145087,1748035834151,-2000.0,0.00028214,2]
[362145089,1748035834161,-2000.0,0.00028214,2]
[362145091,1748035834171,-995.893,0.00028214,2]
[362145093,1748035834181,-2000.0,0.00028214,2]
[362145094,1748035834190,-211.0,0.0002829,2]
[362145096,1748035834199,-211.0,0.0002829,30]
[362145098,1748035834209,-214.0,0.0002829,2]
[362145100,1748035834218,-1000.0,0.00028291,2]
[362145102,1748035834227,-1639.26,0.000283,2]
[362145104,1748035834237,-409.91,0.000283,2]
[362145106,1748035834246,-865.15783747,0.000283,2]
[362145108,1748035834256,-164.3005,0.000283,2]
[362145110,1748035834265,-263.28724349,0.00028304,2]
[362145112,1748035834274,-150.0,0.0002833,2]
[362145114,1748035834284,-166.97,0.00028384,2]
[362145116,1748035834294,-10000.0,0.000284,4]
[362145118,1748035834303,-27257.28223462,0.0002845,2]
[362145120,1748035834313,-150.01,0.00028451,2]
[362145122,1748035834324,-631.0,0.00028464,2]
[362145124,1748035834334,-799.0,0.00028464,2]
[362145126,1748035834344,-1461.0,0.00028464,2]
[362145128,1748035834353,-1260.0,0.00028464,2]
[362145130,1748035834363,-586.0,0.00028464,2]
[362145132,1748035834372,-921.0,0.00028464,2]
[362145134,1748035834381,-554.0,0.00028464,2]
[362145136,1748035834390,-1151.0,0.00028464,2]
[362145138,1748035834399,-6838.0,0.00028464,2]
[362145140,1748035834408,-4052.0,0.00028464,2]
[362145142,1748035834418,-1310.0,0.00028464,2]
[362145144,1748035834429,-230.71669524,0.00028492,2]
[362145146,1748035834439,-10000.0,0.000285,4]
[362145148,1748035834449,-10000.0,0.000286,4]
[362145150,1748035834458,-1000.0,0.000286,2]
[362145152,1748035834467,-718.96,0.000286,2]
[362145154,1748035834477,-1639.26,0.000286,2]
[362145155,1748035834486,-435.75,0.000286,2]
[362145157,1748035834496,-704.48,0.000286,2]
[362145159,1748035834506,-426.54,0.000286,2]
[362145161,1748035834515,-1696.25,0.000286,2]
[362145163,1748035834525,-4609.0,0.00028659,2]
[362145165,1748035834535,-10000.0,0.000287,4]
[362145167,1748035834544,-150.0,0.00028767,2]
[362145170,1748035834554,-1271.78,0.00028767,2]
[362145171,1748035834563,-453.43,0.00028767,2]
[362145173,1748035834572,-367.36,0.00028767,2]
[362145175,1748035834581,-150.0,0.00028767,2]
[362145177,1748035834590,-151.51,0.0002879,2]
[362145179,1748035834600,-500.0,0.00028795,2]
[362145181,1748035834609,-10000.0,0.000288,4]
[362145183,1748035834619,-4445.06,0.000288,2]
[362145185,1748035834628,-2910.5,0.000288,2]
[362145187,1748035834637,-2952.19,0.000288,2]
[362145189,1748035834647,-529.55,0.000288,2]
[362145190,1748035834656,-1639.26,0.000288,2]
[362145191,1748035834665,-435.75,0.000288,2]
[362145192,1748035834675,-704.48,0.000288,2]
[362145193,1748035834684,-426.54,0.000288,2]
[362145194,1748035834694,-1696.25,0.000288,2]
[362145195,1748035834703,-151.0,0.000288,7]
[362145196,1748035834713,-500.0,0.000288,2]
[362145197,1748035834723,-500.0,0.000288,2]
[362145198,1748035834733,-500.0,0.000288,2]
[362145199,1748035834742,-500.0,0.000288,2]
[362145200,1748035834751,-500.0,0.000288,2]
[362145202,1748035834761,-500.0,0.000288,2]
[362145204,1748035834770,-514.0,0.000288,2]
[362145206,1748035834779,-500.0,0.000288,2]
[362145208,1748035834789,-500.0,0.000288,2]
[362145210,1748035834798,-500.0,0.000288,2]
[362145212,1748035834808,-500.0,0.000288,2]
[362145214,1748035834817,-500.0,0.000288,2]
[362145216,1748035834826,-500.0,0.000288,2]
[362145218,1748035834835,-500.0,0.000288,2]
[362145220,1748035834844,-500.0,0.000288,2]
[362145222,1748035834853,-500.0,0.000288,2]
[362145224,1748035834863,-500.0,0.000288,2]
[362145226,1748035834874,-151.0,0.00028803,7]
[362145228,1748035834883,-151.0,0.00028803,7]
[362145230,1748035834893,-3221.31,0.00028803,2]
[362145232,1748035834902,-222.23194834,0.0002883,15]
[362145234,1748035834912,-211.0,0.0002886,2]
[362145236,1748035834922,-211.0,0.0002886,30]
[362145238,1748035834931,-214.0,0.0002886,2]
[362145240,1748035834941,-268.87076912,0.00028866,19]
[362145242,1748035834950,-354.70779428,0.0002888,2]
[362145244,1748035834960,-213.35,0.00028899,2]
[362145246,1748035834970,-15000.0,0.000289,4]
[362145248,1748035834979,-4445.06,0.000289,2]
[362145250,1748035834989,-2910.5,0.000289,2]
[362145252,1748035835000,-2952.19,0.000289,2]
[362145254,1748035835009,-529.55,0.000289,2]
[362145256,1748035835019,-1639.26,0.000289,2]
[362145258,1748035835029,-2400.0,0.000289,10]
[362145260,1748035835038,-151.0,0.0002895,7]
[362145262,1748035835048,-151.51,0.0002899,2]
[362145264,1748035835057,-150.0,0.00028999,2]
[362145266,1748035835067,-200.0,0.00029,120]
[362145268,1748035835077,-10000.0,0.00029,5]
[362145270,1748035835086,-10513.32,0.00029,2]
[362145272,1748035835096,-10513.32,0.00029,2]
[362145274,1748035835105,-559.03,0.00029,2]
[362145276,1748035835115,-302.62,0.00029,2]
[362145278,1748035835124,-302.62,0.00029,2]
[362145279,1748035835134,-302.62,0.00029,2]
[362145282,1748035835144,-302.62,0.00029,2]
[362145283,1748035835153,-53422.17512894,0.00029,2]
[362145285,1748035835162,-205.12,0.00029,2]
[362145287,1748035835171,-4445.06,0.00029,2]
[362145289,1748035835181,-4445.06,0.00029,2]
[362145291,1748035835190,-4445.06,0.00029,2]
[362145293,1748035835199,-2910.5,0.00029,2]
[362145295,1748035835209,-2910.5,0.00029,2]
[362145297,1748035835219,-2910.5,0.00029,2]
[362145299,1748035835228,-2952.19,0.00029,2]
[362145301,1748035835238,-2952.19,0.00029,2]
[362145303,1748035835248,-2952.19,0.00029,2]
[362145305,1748035835258,-529.55,0.00029,2]
[362145307,1748035835267,-529.55,0.00029,2]
[362145309,1748035835277,-529.55,0.00029,2]
[362145311,1748035835287,-1639.26,0.00029,2]
[362145313,1748035835296,-190.0,0.00029,120]
[362145315,1748035835306,-151.0,0.00029,7]
[362145317,1748035835318,-75310.53238715,0.00029,2]
[362145319,1748035835327,-155.36,0.00029,2]
[362145321,1748035835337,-151.0,0.00029,7]
[362145323,1748035835347,-151.0,0.00029,7]
[362145325,1748035835357,-988.07302152,0.00029,2]
[362145327,1748035835366,-643.078404,0.00029,7]
[362145329,1748035835376,-643.078404,0.00029,7]
[362145331,1748035835386,-264.1,0.00029041,2]
[362145333,1748035835395,-10513.32,0.000291,2]
[362145335,1748035835405,-302.62,0.000291,2]
[362145337,1748035835414,-168.28317843,0.000291,2]
[362145340,1748035835424,-152.49,0.0002911,2]
[362145341,1748035835439,-150.0,0.00029136,2]
[362145344,1748035835449,-342.18,0.000292,2]
[362145346,1748035835458,-1000.0,0.000292,2]
[362145347,1748035835467,-10513.32,0.000292,2]
[362145349,1748035835477,-10513.32,0.000292,2]
[362145351,1748035835487,-643.078404,0.000292,7]
[362145354,1748035835497,-643.078404,0.000292,7]
[362145355,1748035835507,-264.43683606,0.00029273,2]
[362145357,1748035835516,-342.18,0.000293,2]
[362145359,1748035835526,-342.18,0.000293,2]
[362145361,1748035835536,-151.51,0.0002938,2]
[362145363,1748035835545,-6175.54861468,0.0002939,6]
[362145381,1748035835709,-298.44111716,0.0002939,6]
[362145384,1748035835729,-2662.77655813,0.0002488,3]
[362145450,1748035837438,-261.92,0.0002488,3]
[362145451,1748035837450,-41232.88242812,0.0002488,3]
[362145452,1748035837462,-3704.57747349,0.0002488,3]
[362145453,1748035837496,-801.83999599,0.0002488,3]
[362145464,1748035839558,-2171.5344,0.0002488,3]
[362145465,1748035839953,-385.01690002,0.0002488,3]
[362145466,1748035839965,-2229.28753116,0.0002488,3]
[362145467,1748035839976,-541.55,0.0002488,3]
[362145474,1748035842491,-866.636216,0.0002488,3]
[362145475,1748035842549,-267349.86680858,0.0002488,3]
[362145490,1748035845649,-13936.05332259,0.0002488,3]
[362145499,1748035845982,-444.36785929,0.0002488,3]
[362145506,1748035855967,420.0,0.00042455,120]
[362145507,1748035857744,420.0,0.00042455,120]
[362145508,1748035858063,420.0,0.00042455,120]
[362145509,1748035858735,420.0,0.00042455,120]
[362145510,1748035859089,515.85,0.00042455,120]
[362145511,1748035860640,413.49,0.00042455,120]
[362145512,1748035877459,420.0,0.00042455,120]
[362145513,1748035878075,420.0,0.00042455,120]
[362145514,1748035878332,276.86,0.00042455,120]
[362145515,1748035880020,250.0,0.00042455,120]
[362145516,1748035880373,250.0,0.00042455,120]
[362145517,1748035880837,384.66,0.00042455,120]
[362145518,1748035948972,4000.0,0.00042455,60]
[362145519,1748036075819,90500.25,0.00027397,120]
[362145521,1748036135953,152.37,0.00013699,2]
[362145526,1748036593731,999.999,0.00027397,120]
[362145527,1748036750125,-152.37,0.00022505,2]
[362145528,1748036750146,-200.0,0.00022713,2]
[362145529,1748036750166,-363.00818831,0.00024163,2]
[362145544,1748036819998,420.0,0.00042481,120]
[362145545,1748036820249,420.0,0.00042481,120]
[362145546,1748036820509,420.0,0.00042481,120]
[362145547,1748036820746,420.0,0.00042481,120]
[362145548,1748036821002,320.0,0.00042481,120]
[362145549,1748036850090,-248.3958544,0.00024163,2]
[362145550,1748036850112,-168.31,0.00024165,2]
[362145551,1748036850132,-276.07063977,0.00024602,2]
[362145555,1748037029472,164.36,0.00026662,120]
[362145559,1748037031625,-200.0,0.0002454,2]
[362145560,1748037031635,-459.49970238,0.00024602,2]
[362145561,1748037031646,-453.26965785,0.00024602,2]
[362145562,1748037031655,-178.01287505,0.00024662,2]
[362145563,1748037031664,-110.73322525,0.00025004,2]
[362145564,1748037031881,-189.26677475,0.00025004,2]
[362145565,1748037031891,-285.60560329,0.00025004,2]
[362145566,1748037031906,-914.39439671,0.00025004,2]
[362145567,1748037031916,-300.0,0.00025004,2]
[362145568,1748037031927,-150.0,0.00025005,2]
[362145569,1748037031940,-150.0,0.00025005,2]
[362145570,1748037031950,-646.65337302,0.00025005,2]
[362145571,1748037031960,-3920.08007295,0.00025005,2]
[362145572,1748037031971,-150.0,0.00025568,2]
[362145573,1748037031980,-1310.0,0.00025569,2]
[362145575,1748037031989,-936.0,0.00025569,2]
[362145577,1748037032000,-631.0,0.00025569,2]
[362145579,1748037032012,-799.0,0.00025569,2]
[362145580,1748037032023,-1151.0,0.00025569,2]
[362145582,1748037032032,-921.0,0.00025569,2]
[362145584,1748037032042,-350.985,0.00025569,2]
[362145586,1748037032051,-1021.45934393,0.00025569,2]
[362145589,1748037032062,-439.54065607,0.00025569,2]
[362145591,1748037032072,-688.083,0.00025569,2]
[362145592,1748037032081,-554.0,0.00025569,2]
[362145594,1748037032091,-6838.0,0.00025569,2]
[362145596,1748037032100,-150.0,0.00025569,2]
[362145598,1748037032110,-911.32,0.00025569,2]
[362145600,1748037032119,-183.081,0.00025569,2]
[362145602,1748037032128,-150.548,0.00025569,2]
[362145604,1748037032138,-154.0,0.00025569,2]
[362145606,1748037032148,-1459.82463637,0.00025569,2]
[362145607,1748037032159,-1209.1542531,0.00025569,2]
[362145608,1748037032181,-103.49162204,0.00025569,2]
[362145609,1748037032197,-1279.52948849,0.00025569,2]
[362145611,1748037032207,-201.65307684,0.000259,14]
[362145612,1748037032216,-500.0,0.0002622,2]
[362145614,1748037032225,-500.0,0.0002622,2]
[362145616,1748037032235,-500.0,0.0002622,2]
[362145618,1748037032244,-625.0,0.00026411,2]
[362145620,1748037032255,-200.0,0.000265,2]
[362145622,1748037032264,-1000.0,0.00026553,2]
[362145625,1748037032274,-150.0,0.00026606,7]
[362145627,1748037032283,-3039.665187,0.00026607,2]
[362145628,1748037032292,-183.19,0.0002661,2]
[362145631,1748037032303,-250.0,0.00026612,2]
[362145632,1748037032312,-500.0,0.00026616,2]
[362145634,1748037032322,-208.67410497,0.00026616,2]
[362145636,1748037032331,-623.63928442,0.00026616,2]
[362145638,1748037032340,-500.0,0.00026616,2]
[362145640,1748037032349,-500.0,0.00026616,2]
[362145642,1748037032358,-500.0,0.00026616,2]
[362145644,1748037032367,-500.0,0.00026616,2]
[362145646,1748037032377,-500.0,0.00026616,2]
[362145648,1748037032386,-500.0,0.00026616,2]
[362145650,1748037032395,-196.32301607,0.00026616,2]
[362145652,1748037032407,-133.50874356,0.00026616,2]
[362145654,1748037032416,-500.0,0.00026616,2]
[362145656,1748037032425,-432.72781496,0.00026616,2]
[362145658,1748037032436,-67.27218504,0.00026616,2]
[362145659,1748037032445,-453.31935089,0.00026616,2]
[362145660,1748037032465,-361.27192957,0.00024417,2]
[362146108,1748037037453,-1202.28661043,0.00024417,2]
[362146110,1748037037463,-583.50154957,0.00025569,2]
[362146112,1748037037474,-297.49845043,0.00025569,2]
[362146114,1748037037483,-46.68064911,0.00026616,2]
[362146116,1748037037493,-500.0,0.00026616,2]
[362146118,1748037037502,-718.42132161,0.00026617,2]
[362146121,1748037037518,-1660.7,0.00026617,2]
[362146123,1748037037528,-401.64443139,0.00026617,2]
[362146134,1748037037620,-966.21106867,0.00026617,2]
[362146141,1748037037679,-1194.80750344,0.00026617,2]
[362146148,1748037037738,-899.53435233,0.00026617,2]
[362146336,1748037039801,-2600.42985987,0.00026617,2]
[362146337,1748037039915,-1206.148932,0.00026617,2]
[362146338,1748037039929,-1638.15443551,0.00026617,2]
[362146339,1748037039944,-1143.75519033,0.00026617,2]
[362146346,1748037042634,-219.271,0.00025569,2]
[362146347,1748037042644,-9725.28622412,0.00026617,2]
[362146348,1748037042850,-1744.90668073,0.00026617,2]
[362146349,1748037042860,-201.65307684,0.00026639,15]
[362146350,1748037042869,-241.60571407,0.00026658,2]
[362146351,1748037042879,-150.0,0.00026658,2]
[362146352,1748037042888,-161.5186941,0.00026658,2]
[362146353,1748037042900,-922.83822405,0.00026658,2]
[362146354,1748037042910,-89.45718206,0.00026803,2]
[362146358,1748037045578,-461.04281794,0.00026803,2]
[362146359,1748037045588,-62.43347411,0.00026815,2]
[362146360,1748037045637,-619.38652589,0.00026815,2]
[362146361,1748037045647,-200.0,0.00026859,2]
[362146362,1748037045659,-1033.02273327,0.00026866,2]
[362146363,1748037045670,-155.81726673,0.00026866,2]
[362146364,1748037045680,-1852.42,0.00026887,2]
[362146365,1748037045691,-161.54,0.00026894,2]
[362146366,1748037045701,-161.54,0.00026907,2]
[362146367,1748037045710,-127.22626773,0.00026919,2]
[362146368,1748037045722,-34.31373227,0.00026919,2]
[362146369,1748037045734,-190.05,0.0002692,2]
[362146370,1748037045743,-250.0,0.00026926,2]
[362146371,1748037045753,-200.0,0.00026926,2]
[362146372,1748037045763,-161.54,0.00026931,2]
[362146373,1748037045772,-5245.97,0.00026931,2]
[362146374,1748037045782,-161.54,0.00026943,2]
[362146375,1748037045791,-161.54,0.00026955,2]
[362146376,1748037045801,-161.54,0.00026968,2]
[362146377,1748037045811,-161.54,0.0002698,2]
[362146378,1748037045821,-159.21,0.00026986,2]
[362146379,1748037045833,-161.54,0.00026992,2]
[362146380,1748037045843,-161.54,0.00027004,2]
[362146381,1748037045852,-161.54,0.00027017,2]
[362146382,1748037045861,-161.54,0.00027029,2]
[362146383,1748037045871,-1680.0,0.0002721,2]
[362146384,1748037045882,-500.0,0.0002726,2]
[362146385,1748037045891,-201.65307684,0.00027378,17]
[362146386,1748037045901,-205.19,0.00027386,2]
[362146387,1748037045911,-150.01,0.00027397,2]
[362146388,1748037045921,-3163.07,0.00027397,2]
[362146389,1748037045930,-150.0,0.000277,2]
[362146390,1748037045944,-210.0,0.00027735,2]
[362146391,1748037045953,-591.444,0.0002792,18]
[362146392,1748037045963,-500.0,0.0002792,2]
[362146393,1748037045974,-500.0,0.0002792,2]
[362146394,1748037045985,-500.0,0.0002792,2]
[362146395,1748037045995,-500.0,0.0002792,2]
[362146396,1748037046006,-500.0,0.0002792,2]
[362146397,1748037046016,-500.0,0.0002792,2]
[362146398,1748037046028,-500.0,0.0002792,2]
[362146399,1748037046039,-500.0,0.0002792,2]
[362146400,1748037046048,-500.0,0.0002792,2]
[362146401,1748037046058,-500.0,0.0002792,2]
[362146402,1748037046068,-500.0,0.0002792,2]
[362146403,1748037046080,-500.0,0.0002792,2]
[362146404,1748037046090,-500.0,0.0002792,2]
[362146405,1748037046100,-500.0,0.0002792,2]
[362146406,1748037046111,-500.0,0.0002792,2]
[362146407,1748037046122,-500.0,0.0002792,2]
[362146408,1748037046134,-500.0,0.0002792,2]
[362146409,1748037046143,-500.0,0.0002792,2]
[362146410,1748037046153,-500.0,0.0002792,2]
[362146411,1748037046162,-500.0,0.0002792,2]
[362146412,1748037046171,-500.0,0.0002792,2]
[362146413,1748037046181,-500.0,0.0002792,2]
[362146414,1748037046190,-500.0,0.0002792,2]
[362146415,1748037046200,-500.0,0.0002792,2]
[362146416,1748037046210,-500.0,0.0002792,2]
[362146417,1748037046219,-500.0,0.0002792,2]
[362146418,1748037046230,-500.0,0.0002792,2]
[362146419,1748037046239,-500.0,0.0002792,2]
[362146420,1748037046249,-500.0,0.0002792,2]
[362146421,1748037046258,-500.0,0.0002792,2]
[362146422,1748037046268,-500.0,0.0002792,2]
[362146423,1748037046278,-500.0,0.0002792,2]
[362146424,1748037046287,-500.0,0.0002792,2]
[362146425,1748037046297,-500.0,0.0002792,2]
[362146426,1748037046307,-500.0,0.0002792,2]
[362146427,1748037046316,-500.0,0.0002792,2]
[362146428,1748037046326,-500.0,0.0002792,2]
[362146429,1748037046335,-500.0,0.0002792,2]
[362146430,1748037046344,-500.0,0.0002792,2]
[362146431,1748037046353,-500.0,0.0002792,2]
[362146432,1748037046362,-500.0,0.0002792,2]
[362146433,1748037046372,-500.0,0.0002792,2]
[362146434,1748037046381,-500.0,0.0002792,2]
[362146435,1748037046390,-500.0,0.0002792,2]
[362146436,1748037046399,-500.0,0.0002792,2]
[362146437,1748037046409,-500.0,0.0002792,2]
[362146438,1748037046418,-500.0,0.0002792,2]
[362146439,1748037046427,-500.0,0.0002792,2]
[362146440,1748037046436,-500.0,0.0002792,2]
[362146441,1748037046445,-500.0,0.0002792,2]
[362146442,1748037046455,-500.0,0.0002792,2]
[362146443,1748037046464,-500.0,0.0002792,2]
[362146444,1748037046473,-500.0,0.0002792,2]
[362146445,1748037046482,-201.65307684,0.00028117,18]
[362146446,1748037046491,-150.99,0.00028203,2]
[362146447,1748037046501,-150.99,0.00028203,2]
[362146448,1748037046510,-999.99,0.00028203,2]
[362146449,1748037046519,-675.025842,0.00028498,4]
[362146450,1748037046532,-1310.0,0.00028569,2]
[362146451,1748037046541,-936.0,0.00028569,2]
[362146452,1748037046550,-631.0,0.00028569,2]
[362146453,1748037046559,-799.0,0.00028569,2]
[362146454,1748037046568,-921.0,0.00028569,2]
[362146455,1748037046578,-1461.0,0.00028569,2]
[362146456,1748037046587,-586.0,0.00028569,2]
[362146457,1748037046596,-554.0,0.00028569,2]
[362146458,1748037046606,-6838.0,0.00028569,2]
[362146459,1748037046615,-843.0,0.00028569,2]
[362146460,1748037046625,-154.0,0.00028569,2]
[362146461,1748037046635,-4052.0,0.00028569,2]
[362146462,1748037046644,-881.0,0.00028569,2]
[362146463,1748037046653,-150.01,0.00028643,2]
[362146464,1748037046662,-205.19,0.00028756,2]
[362146465,1748037046671,-3163.07,0.00028767,2]
[362146466,1748037046680,-453.43,0.00028767,2]
[362146467,1748037046690,-1158.81,0.00028767,2]
[362146468,1748037046699,-453.43,0.00028767,2]
[362146469,1748037046708,-170.17,0.00028767,2]
[362146470,1748037046718,-453.43,0.00028767,2]
[362146471,1748037046727,-904.62,0.00028767,2]
[362146472,1748037046736,-353.5,0.00028767,2]
[362146473,1748037046746,-353.5,0.00028767,2]
[362146474,1748037046755,-353.5,0.00028767,2]
[362146475,1748037046765,-353.5,0.00028767,2]
[362146476,1748037046774,-353.5,0.00028767,2]
[362146477,1748037046783,-201.65307684,0.00028857,19]
[362146478,1748037046792,-400.0,0.000289,10]
[362146479,1748037046802,-190.05,0.00028939,2]
[362146480,1748037046811,-155.37,0.00029,2]
[362146481,1748037046820,-596.5289,0.0002909,2]
[362146482,1748037046830,-21403.61215896,0.000291,2]
[362146483,1748037046840,-1188.84,0.0002913,2]
[362146484,1748037046850,-7640.38000203,0.0002919,2]
[362146485,1748037046859,-150.0,0.00029215,2]
[362146486,1748037046868,-173.03752143,0.00029289,2]
[362146487,1748037046877,-155.56236387,0.0002929,15]
[362146488,1748037046886,-2000.0,0.00029324,7]
[362146489,1748037046896,-214.47386826,0.00029379,2]
[362146490,1748037046905,-291.64857978,0.00029379,2]
[362146491,1748037046914,-216.65579852,0.00029379,2]
[362146492,1748037046924,-425.58737854,0.00029379,2]
[362146493,1748037046933,-151.0,0.0002938,2]
[362146494,1748037046948,-7640.38000202,0.0002938,2]
[362146495,1748037046958,-37904.9872852,0.0002938,3]
[362146496,1748037046967,-500.0,0.00029389,2]
[362146497,1748037046977,-500.0,0.00029389,2]
[362146498,1748037046986,-500.0,0.00029389,2]
[362146499,1748037046995,-500.0,0.00029389,2]
[362146500,1748037047005,-500.0,0.00029389,2]
[362146501,1748037047015,-500.0,0.00029389,2]
[362146502,1748037047024,-500.0,0.00029389,2]
[362146503,1748037047033,-500.0,0.00029389,2]
[362146504,1748037047042,-500.0,0.00029389,2]
[362146505,1748037047051,-500.0,0.00029389,2]
[362146506,1748037047060,-500.0,0.00029389,2]
[362146507,1748037047069,-500.0,0.00029389,2]
[362146508,1748037047078,-500.0,0.00029389,2]
[362146509,1748037047087,-500.0,0.00029389,2]
[362146510,1748037047097,-500.0,0.00029389,2]
[362146511,1748037047106,-500.0,0.00029389,2]
[362146512,1748037047115,-500.0,0.00029389,2]
[362146513,1748037047124,-500.0,0.00029389,2]
[362146514,1748037047134,-500.0,0.00029389,2]
[362146515,1748037047143,-500.0,0.00029389,2]
[362146516,1748037047339,-500.0,0.00029389,2]
[362146517,1748037047348,-500.0,0.00029389,2]
[362146518,1748037047358,-500.0,0.00029389,2]
[362146519,1748037047368,-500.0,0.00029389,2]
[362146520,1748037047377,-500.0,0.00029389,2]
[362146521,1748037047386,-500.0,0.00029389,2]